Cogmind - Beta 16.1 @@@ ROGUE MODE // 2026.06.19 @ 23:16:59 Player: Ammie Result: Destroyed by Y-45 Defender with Heavy Assault Rifle Performance ------------- Evolutions (1) 500 Regions Visited (2) 400 Robots Destroyed (40) 200 Value Destroyed (923) 923 Prototype IDs (1) 20 Alien Tech Used (0) 0 Bonus (0) 0 TOTAL SCORE: 2043 Bonus ------- None Cogmind --------- Core Integrity 0/400 Matter 121/300 Energy 79/100 System Corruption 0% Temperature Cool (15) Movement Hovering (60) Location -9/Materials Parts ------- > --- POWER (1) -------- (None) > --- PROPULSION (4) --- Improved Hover Unit VTOL Module VTOL Module VTOL Module > --- UTILITY (2) ------ Structural Scanner Targeting Computer > --- WEAPON (2) ------- Beam Cannon Grenade Launcher > --- INVENTORY (5) ---- Small Storage Unit Small Laser Peak State ------------ > --- POWER ------------ Ion Engine > --- PROPULSION ------- VTOL Module VTOL Module VTOL Module VTOL Module > --- UTILITY ---------- Cooling System Structural Scanner > --- WEAPON ----------- Light Assault Rifle Grenade Launcher > --- INVENTORY -------- Small Storage Unit Targeting Computer [Rating: 14] Favorites ----------- Power Ion Engine Engine Ion Engine Propulsion VTOL Module Treads Light Treads Hover Unit Improved Hover Unit Flight Unit VTOL Module Utility Cooling System Device Cooling System Storage Small Storage Unit Processor Targeting Computer Protection Hardened Light Armor Plating Weapon Medium Laser Energy Gun Medium Laser Energy Cannon Beam Cannon Ballistic Gun Light Assault Rifle Launcher Grenade Launcher Build | -11 -10 -9 ------- Run | Yrd Mat Mat Slots Evolved 2 | . . 2 Power . | . . . Propulsion 2 | . . 2 Utility . | . . . Weapon . | . . . Parts Attached 33 | 7 8 18 Power 4 | 2 1 1 Engine 4 | 2 1 1 Core . | . . . Reactor . | . . . Propulsion 14 | 2 2 10 Treads 3 | 2 . 1 Leg . | . . . Wheel . | . . . Hover 1 | . . 1 Flight 10 | . 2 8 Utility 5 | 1 3 1 Device 2 | . 2 . Storage 1 | 1 . . Processor 1 | . . 1 Hackware . | . . . Protection 1 | . 1 . Artifact . | . . . Weapon 10 | 2 2 6 Energy Gun 3 | 2 . 1 Energy Cannon 2 | . . 2 Ballistic Gun 2 | . 1 1 Ballistic Cannon . | . . . Launcher 3 | . 1 2 Special Weapon . | . . . Impact Weapon . | . . . Slashing Weapon . | . . . Piercing Weapon . | . . . Special Melee Weapon . | . . . Unidentified Prototypes 1 | . . 1 Parts Lost 17 | . 3 14 Power 3 | . 1 2 Propulsion 8 | . . 8 Utility 1 | . . 1 Weapon 5 | . 2 3 Highest Loss Streak 9 | . 2 9 To Critical Strikes . | . . . Average Backups 3 | . 3 1 Power . | . . . Propulsion 1 | . 1 . Utility 1 | . . 1 Weapon . | . . . Tool/Special . | . . . Unused Backups . | . . . Power . | . . . Propulsion . | . . . Utility . | . . . Weapon . | . . . Tool/Special . | . . . Average Slot Usage (%) 80 | . 89 63 Engine 10 | . 13 4 Treads 3 | . 5 1 Flight 23 | . 22 23 Device 16 | . 18 13 Storage 1 | . 1 . Processor 1 | . . 5 Energy Gun 10 | . 15 . Energy Cannon 1 | . . 5 Ballistic Gun 3 | . 2 3 Launcher 6 | . 6 5 Peak Build Rating 14 | 6 11 14 Average Rating 8 | 4 8 7 On Entrance 5 | . 6 10 Avg Prop Armor Cover (%) 7 | . . 7 Naked Turns . | . . . Heaviest Build 16 | 14 16 12 Greatest Support 40 | 40 40 20 Greatest Overweight (x) 2 | . 1 2 Average Overweight (x) . | . . . Largest Inventory Capacity 8 | 8 8 5 Average Capacity 5 | 6 5 5 Most Carried 5 | 2 5 3 Average Carried 3 | . 3 1 Final Capacity 8 | 8 5 5 Final Carried 4 | 2 4 2 Class Distribution -------------------- 82% | Mutant 17% | Sprinter Dominant Class ---------------- Mutant | -10/Materials Mutant | -9/Materials Resources | -11 -10 -9 ----------- Run | Yrd Mat Mat Matter Collected 592 | 235 134 223 Remotely . | . . . Salvage Created 1018 | . 645 373 Parts 56 | . 28 28 Haulers Intercepted 3 | . 2 1 Recyclers Shooed 1 | . 1 . Parts Field Recycled . | . . . Retrieved Matter . | . . . Parts Self-Destructed . | . . . Prevented . | . . . Parts Restored . | . . . Kills | -11 -10 -9 ------- Run | Yrd Mat Mat Combat Hostiles Destroyed 25 | . 14 11 Melee 1 | . . 1 Guns 12 | . 8 4 AOE 12 | . 6 6 Classes Destroyed 9 | . 7 2 Worker 2 | . . 2 Builder 3 | . 2 1 Hauler 3 | . 2 1 Recycler 1 | . 1 . Operator 1 | . 1 . Watcher 5 | . 3 2 Swarmer 7 | . 3 4 Grunt 17 | . 11 6 Sentry 1 | . . 1 Best Kill Streak 10 | . 8 10 Combat Bots Only 6 | . 4 6 Max Kills in Single Turn 2 | . 2 2 Gunslinging 1 | . 1 . Exploded 2 | . 2 2 Melee 1 | . . 1 Uniques/NPCs Destroyed . | . . . Combat | -11 -10 -9 -------- Run | Yrd Mat Mat Hostile Shots Fired 224 | . 83 141 Missed 76 | . 25 51 Hits 148 | . 58 90 Projectile 148 | . 58 90 Critical Strikes 2 | . 1 1 Damage Taken 1918 | . 772 1146 Core 531 | . 119 412 Absorbed by Shields . | . . . Core Remaining (%) 76 | 100 52 . Volleys Fired 133 | . 80 53 Largest 2 | . 2 2 Hottest 100 | . 100 93 Shots Fired 176 | . 119 57 Gun 137 | . 102 35 Cannon 14 | . . 14 Launcher 25 | . 17 8 Special . | . . . Kinetic 51 | . 16 35 Thermal 100 | . 86 14 Explosive 25 | . 17 8 Electromagnetic . | . . . Robot Hit Streak 17 | . 10 17 Robot Miss Streak 5 | . 5 3 Penetration Max . | . . . Secondary Targets 2 | . 2 . Max Gunslinging Chain 1 | . 1 . Shots Hit Robots 110 | . 71 39 Core Hits 73 | . 45 28 Critical Kills . | . . . Critical Parts Destroyed . | . . . Critical Strikes 7 | . 7 . Burn 7 | . 7 . Melee Attacks . | . . . Impact . | . . . Slashing . | . . . Piercing . | . . . Sneak Attacks . | . . . Combat Hostiles . | . . . Follow-up Attacks . | . . . Damage Inflicted 2560 | . 1469 1091 Guns 951 | . 730 221 Cannons 106 | . . 106 Explosions 1479 | . 739 740 Melee . | . . . Ramming 24 | . . 24 Kinetic 277 | . 56 221 Thermal 780 | . 674 106 Explosive 1479 | . 739 740 Electromagnetic . | . . . Impact . | . . . Slashing . | . . . Piercing . | . . . Highest Corruption . | . . . Average Corruption . | . . . Corruption Purged . | . . . Corruption Blocked . | . . . Overload Shots . | . . . Overflow Damage 55 | . 38 17 Projectiles . | . . . Explosions 55 | . 38 17 Melee . | . . . Knockbacks . | . . . Impact . | . . . Kinetic . | . . . Secondary . | . . . Self-Inflicted Damage 99 | . 35 64 Shots 2 | . 1 1 Rammed 5 | . . 5 Targets Rammed 5 | . . 5 Kicked . | . . . Crushed . | . . . Highest Temperature 247 | . 156 247 Average Temperature 66 | . 84 45 Received Heat Transfer 711 | . 417 294 Siege Activations . | . . . Martial Activations . | . . . Shielding Activations . | . . . Robots Disrupted . | . . . Combat Hostiles . | . . . Robots Corrupted . | . . . Combat Hostiles . | . . . Parts Fried . | . . . Impact Corruptions . | . . . Robots Melted . | . . . Combat Hostiles . | . . . Parts Melted 3 | . 3 . Heat Transferred 2738 | . 2516 222 Parts Sabotaged . | . . . Parts Stolen . | . . . Parts Stripped . | . . . Power Chain Reactions . | . . . Alert | -11 -10 -9 ------- Run | Yrd Mat Mat Maximum Alert Level 1 | . . 1 Low Security (%) 85 | 100 100 53 Level 1 14 | . . 46 Level 2 . | . . . Level 3 . | . . . Level 4 . | . . . Level 5 . | . . . High Security . | . . . Max Security . | . . . Peak Influence 359 | . 166 359 Initial 69 | . . 69 Average 99 | . 71 179 Influence Increases 1069 | . 512 557 Destroy 0b10 Robot/C 500 | . 280 220 Destroy 0b10 Robot/NC 75 | . 45 30 Destroy Leader 116 | . 70 46 Disable Machine 60 | . . 60 Destroy Structure 138 | . 72 66 Partial Spotted 15 | . . 15 Lose Combat Pursuer 165 | . 45 120 Influence Decreases 773 | . 346 427 Entered New Map 97 | . . 97 Time Decay 506 | . 316 190 Lost Part 170 | . 30 140 Squads Dispatched 2 | . 2 . Investigation 1 | . 1 . Extermination . | . . . Reinforcement 1 | . 1 . Assault . | . . . Garrison . | . . . Intercept . | . . . Searches Triggered . | . . . Construction Impeded . | . . . Haulers Reinforced . | . . . Active Scanning Responses . | . . . Cargo Convoy Interrupts . | . . . Stealth | -11 -10 -9 --------- Run | Yrd Mat Mat Distress Signals 1 | . . 1 Communications Jammed . | . . . Distress Signals . | . . . Times Spotted 46 | . 23 23 Peak Tracking Total 7 | . 4 7 Tactical Retreats 6 | . 1 5 Traps | -11 -10 -9 ------- Run | Yrd Mat Mat Traps Triggered 1 | . 1 . Indirectly . | . . . Trap Hack Attempts . | . . . Triggered . | . . . Disarmed . | . . . Reprogrammed . | . . . Reused . | . . . Traps Extracted . | . . . Installed . | . . . Triggered . | . . . Machines | -11 -10 -9 ---------- Run | Yrd Mat Mat Machines Disabled 5 | . 1 4 Max in Single Turn 2 | . 1 2 Machines Repaired . | . . . Machines Dismantled . | . . . Machines Sabotaged . | . . . Overloaded Fab Kills . | . . . Hacking | -11 -10 -9 --------- Run | Yrd Mat Mat Machines Accessed 4 | . 3 1 Terminals 3 | . 2 1 Fabricators . | . . . Repair Stations 1 | . 1 . Recycling Units . | . . . Scanalyzers . | . . . Garrison Access . | . . . Total Hacks 5 | . 4 1 Successful 1 | . 1 . Failed 4 | . 3 1 Catastrophic . | . . . Database Lockouts . | . . . Manual 2 | . 1 1 Terminals 4 | . 3 1 Fabricators . | . . . Repair Stations 1 | . 1 . Recycling Units . | . . . Scanalyzers . | . . . Garrison Access . | . . . Terminal Hacks 1 | . 1 . Locate Traps 1 | . 1 . Fabricator Hacks . | . . . Repair Station Hacks . | . . . Recycling Unit Hacks . | . . . Scanalyzer . | . . . Garrison Access Hacks . | . . . Unauthorized Hacks . | . . . Terminals . | . . . Fabricators . | . . . Repair Stations . | . . . Recycling Units . | . . . Scanalyzers . | . . . Garrison Access . | . . . Data Cores Recovered 1 | . 1 . Used . | . . . Hacking Detections 1 | . 1 . Full Trace Events . | . . . Feedback Events . | . . . Feedback Blocked . | . . . Robot Schematics Acquired . | . . . Robots Built . | . . . Authchips . | . . . Time . | . . . Total Robot Build Rating . | . . . Part Schematics Acquired . | . . . Parts Built . | . . . Authchips . | . . . Time . | . . . Total Part Build Rating . | . . . Part Studies Acquired . | . . . Parts Repaired . | . . . Time . | . . . Parts Recycled . | . . . Recycled Matter . | . . . Retrieved Matter . | . . . Retrieved Components . | . . . Parts Scanalyzed . | . . . Part Schematics Acquired . | . . . Parts Damaged . | . . . Bothacking | -11 -10 -9 ------------ Run | Yrd Mat Mat Used RIF Installer . | . . . Robots Hacked . | . . . Non-combat . | . . . Combat . | . . . Robot Hacks Applied . | . . . Relay Couplers Released . | . . . Fabnet Peak Effective % . | . . . Robots Rewired . | . . . Allies Hacked . | . . . Hacks Repelled . | . . . Allies | -11 -10 -9 -------- Run | Yrd Mat Mat Total Allies . | . . . Largest Group . | . . . Highest-Rated Group . | . . . Highest-Rated Ally . | . . . Total Orders . | . . . Ally Attacks . | . . . Total Damage . | . . . Kills . | . . . Allies Corrupted . | . . . Allies Melted . | . . . Intel | -11 -10 -9 ------- Run | Yrd Mat Mat Active Infowar (turns) 730 | . 376 354 Structural 730 | . 376 354 Robot Analysis Total . | . . . Derelict Logs Recovered . | . . . Drone Launches . | . . . Drone Recoveries . | . . . Exploration | -11 -10 -9 ------------- Run | Yrd Mat Mat Turns Passed 1332 | 75 859 398 Spaces Moved 1124 | 42 545 537 Core 76 | 3 . 73 Treads 107 | 39 57 11 Legs . | . . . Wheels . | . . . Hover 24 | . . 24 Flight 917 | . 488 429 Fastest Speed 26 | 50 112 26 Average Speed 81 | 152 117 40 Slowest Speed 200 | 160 160 200 Overloaded Moves . | . . . Propulsion Burnouts . | . . . Robots Hopped 2 | . . 2 Potential Cave-ins . | . . . Cave-ins Triggered . | . . . Exploration Rate (%) 48 | 5 92 49 Regions Visited 2 Branch Regions . Pre-discovered Areas . | . . . Known Exits Taken . | . . . Unknown Exits Taken 2 | 1 1 . Scrap Searched . | . . . Spaces Dug . | . . . Terrain Destroyed 167 | . 94 73 Melee . | . . . Projectile . | . . . AOE 167 | . 94 73 Terrain Rammed . | . . . Walls Destroyed . | . . . Machines Disabled . | . . . Actions | -11 -10 -9 --------- Run | Yrd Mat Mat Total 1356 | 50 648 658 Wait 52 | 1 6 45 Move 1118 | 41 544 533 Hop 2 | . . 2 Pick Up 7 | 1 5 1 Fast Attach 22 | 6 3 13 Attach 5 | . 2 3 Detach . | . . . Swap 8 | 1 5 2 Drop 4 | . 3 1 Fire 133 | . 80 53 Melee . | . . . Ram 5 | . . 5 Kick . | . . . Crush . | . . . Escape Stasis . | . . . Rewire . | . . . Trap . | . . . Miscellaneous . | . . . Route ------- -11/Scrapyard -10/Materials (discovered 5 exits: *Mat x3 / [*Min] / [*Sub]) -9/Materials (discovered 2 exits: [*Mat] / [*Sto]) History --------- Turn | Location | Event 2 | -11/Scrapyard | Met Revision 17 20 | -11/Scrapyard | Discovered new exit (range 14) 76 | -11/Scrapyard | Entered Materials 348 | -10/Materials | Discovered new exit (range 5) 400 | -10/Materials | Discovered new exit (range 7) 514 | -10/Materials | Discovered new exit (range 16) 618 | -10/Materials | Build established: Mutant 783 | -10/Materials | Discovered new exit (range 16) 876 | -10/Materials | Derelicts attacked the area 895 | -10/Materials | Discovered new exit (range 13) 935 | -10/Materials | Entered another Materials area 935 | -9/Materials | Evolved 2 slots: Propulsion x2 1059 | -9/Materials | Core integrity fell below 50% 1084 | -9/Materials | Lost 9 parts (1p5n1u2w) 1151 | -9/Materials | Core integrity fell below 20% 1232 | -9/Materials | Lost 5 parts (1p3n1w) 1246 | -9/Materials | Discovered new exit (range 15) 1326 | -9/Materials | Discovered new exit (range 4) 1333 | -9/Materials | Destroyed by Y-45 Defender with Heavy Assault Rifle Last Messages --------------- 01201_ Lgt. Treads destroyed. 01203_ Acquired VTOL Module. 01207_ K-01 Serf collects debris. 01208_ Acquired Grenade Launcher. 01210_ Acquired VTOL Module. 01211_ The unstable cave ceiling collapses. 01213_ K-01 Serf collects debris. 01223_ Connecting with Terminal... 01223_ Current location identified: Materials 01226_ Terminal disabled. 01241_ K-01 Serf cleans the Matter Filter. 01246_ EXIT=FOUND 01302_ K-01 Serf destroyed. 01305_ Extracted 100 matter. 01310_ W-16 Scout sends out distress signal. 01310_ W-16 Scout destroyed. 01312_ Acquired Imp. Hover Unit. 01322_ O-16 Technician: "IFF HANDSHAKE FAILED. SECURING TERMINAL." 01326_ EXIT=FOUND 01333_ A-02 Transporter suffers critical hit (Burn). Map ----- +----------------------------------------------------+ | | | | | | | | | | | | | ???????????????????????????????????????????? | | ???????????????????????????????????????????? | | ???????????????????????????????????????????? | | ???????????????????????????????????????????? | | ???????????????????????????????????????????? | | ???????????????????????????????????????????? | | ???????????????????????????????????????????? | | ???????????????????????????????????????????? | | ????????????????????????????????#########??? | | ????????????????????????????????############ | | ????????????##########??????????## ##### | | ????????????##########??????????## | | ????????????## ##??????????## " | | ?????????????? ##??????????## | | ??????????????? ##??????????## ##### | | ??????????????? < ?############## ###### | | ???????????????? ??############## ###??? | | ?????? # #### # ## ##???? | | ?????? + #######+### ] ## ##???? | | ?????? # @# ## ##???? | | ?????? # a/ + ###### | | ?????? # ######## # [ ## ###### | | ??????## ########u ############### # | | ????????????????## ######## # # | | ????????????????## ######## "" # # """ | | ????????????????## + "T + + """ | | ????????????????##Y######### "" %# # """ | | ???????????????? ###### # # | | ????????????## """ ##??## # ###### | | ????????????## ]! """ ##??######### ###### | | ????????????## ! """ ##??######### ##???# | | ????????????## ##?????????## ###### | | ????????????## ##?????????## ###### | | ???????????## ##?????????## | | ???????????### ##?????????## % | | ???????????### ?????????????## ! | | ????????????#######?????########### ###### | | ???????????? #?????########### ###### | | ????????????????????????## !! ### ##??## | | ????????????????????????## !! ### ##??## | | ????????????????????????## !! ### ##??## | | ????????????????????????## ### ##??## | | ????????????????????????## ### ##??## | | ?????????????????????##### ### ##??## | +----------------------------------------------------+ Best States ------------- Heat Dissipation 50 Energy Generation 10 Energy Capacity 250 Matter Stores 300 Matter Capacity 300 Sight Range 16 Terrain Scan Density 10 Armor Coverage 150 Evasion (%) 64 Targeting Accuracy 5 Recoil Reduction 2 Item Schematics ----------------- None Robot Schematics ------------------ None Fabricated ------------ Nothing Repaired ---------- Nothing Studied --------- None Alien Tech Used ----------------- None Achievements -------------- None Challenges ------------ None Game ------ Seed GravityDeliveryCannon Manual? 0 Play Time 00:18:02 Cumulative 70.8 hours Start 2026.06.19 @ 23:01:58 End 2026.06.19 @ 23:16:59 Sessions 1 Manual Loads 0 Difficulty Rogue Special Mode None Game No. 119 Rogue 119 Adventurer 0 Explorer 0 Win Type - Total 0 Types 0/0/0/0/0/0/0/0/0/0 Lore% 21 Gallery% 30 Achievement% 26 Wizard Run 0 Options --------- Layout 0 ASCII 0 Keyboard 0 Movement Mouse Keybinds 0 Fullscreen 1 Font 24/Smallcaps Map View 38x25 Zoom Use 99% Tactical HUD 1 Map Filters NONE Filters NONE Steam 1 RUN: 3a86735e-b80b-430d-96f7-9f45364b93d8